[Event "DSAM Bad Wildungen 2024"]
[Site "Bad Wildungen"]
[Date "2024.08.01"]
[Round "2.2"]
[White "Noetzel, Felix"]
[Black "Kocharin, Timur"]
[Result "1-0"]
[Annotator "RC"]
[ECO "B96"]
[WhiteElo "2163"]
[BlackElo "2297"]
[PlyCount "85"]
[EventDate "2024.07.31"]
[EventCountry "GER"]
[SourceTitle "playchess.com"]
[Source "ChessBase"]
[SourceQuality "1"]
[TimeControl "40/5400+30:900+30"]

1. e4 {[%emt 0:00:04]} c5 {[%emt 0:00:35]} 2. Nf3 {[%emt 0:00:06]} d6 {[%emt 0:00:19]} 3. d4 {[%emt 0:00:06]} cxd4 {[%emt 0:00:14]} 4. Nxd4 {[%emt 0:00:05]} Nf6 {[%emt 0:00:09]} 5. Nc3 {[%emt 0:00:05]} a6 {[%emt 0:00:05]} 6. Bg5 {[%emt 0:01:22]} e6 {[%emt 0:00:32]} 7. f4 {[%emt 0:00:06]} h6 {[%emt 0:00:14]} 8. Bh4 {[%emt 1:32:36]} Qb6 {[%emt 0:01:11]} 9. Nb3 {[%emt 0:00:00]} Qe3+ {[%emt 0:07:07]} 10. Be2 {[%emt 0:00:00]} Qxf4 {[%emt 0:03:32]} 11. Bg3 {[%emt 0:00:00]} Qe3 {[%emt 0:01:43]} 12. Bf2 {[%emt 0:00:00]} Qg5 {[%emt 0:01:53]} 13. h4 {[%emt 0:00:00]} Qg6 {[%emt 0:05:13]} 14. Qd3 {[%emt 0:00:00]} Nbd7 {[%emt 0:00:42]} 15. h5 {[%emt 0:00:00]} Qh7 {[%emt 0:04:57]} 16. O-O-O {[%emt 0:00:00]} Ne5 {[%emt 0:00:32]} 17. Qd4 {[%emt 0:00:00]} Be7 {[%emt 0:01:22]} 18. Nd2 {[%emt 0:00:00]} b5 {[%emt 0:03:29]} 19. Nf3 {[%emt 0:00:00]} Nfg4 {[%emt 0:01:39]} 20. Bg3 {[%emt 0:00:00]} O-O {[%emt 0:01:18]} 21. Nxe5 {[%emt 0:00:00]} Nxe5 {[%emt 0:02:17]} 22. Bxe5 {[%emt 0:00:00]} dxe5 {[%emt 0:00:05]} 23. Qxe5 {[%emt 0:00:00]} b4 {[%emt 0:02:53]} 24. Na4 {[%emt 0:00:00]} Bb7 {[%emt 0:02:04]} 25. Nb6 {[%emt 0:00:00]} Rad8 {[%emt 0:02:04]} 26. Nd7 {[%emt 0:00:28]} Rfe8 {[%emt 0:01:43]} 27. Bf3 {[%emt 0:02:05]} Bc6 {[%emt 0:01:47]} 28. Nc5 {[%emt 0:00:31]} Rxd1+ {[%emt 0:03:01]} 29. Rxd1 {[%emt 0:00:09]} Bxc5 {[%emt 0:00:04]} 30. Qxc5 {[%emt 0:00:10]} Bxe4 {[%emt 0:00:12]} 31. Qe7 {[%emt 0:01:45]} Bc6 {[%emt 0:08:44]} 32. Rd8 {[%emt 0:03:07]} Qf5 {[%emt 0:00:28]} 33. Rxe8+ {[%emt 0:00:02]} Bxe8 {[%emt 0:00:05]} 34. Qxe8+ {[%emt 0:00:04]} Kh7 {[%emt 0:00:04]} 35. Qd7 {[%emt 0:00:43]} Qf4+ {[%emt 0:00:28]} 36. Qd2 {[%emt 0:00:10]} Qh4 {[%emt 0:45:45]} 37. Qd3+ {[%emt 0:02:09]} f5 {[%emt 0:00:00]} 38. Qxa6 {[%emt 0:02:02]} Qe1+ {[%emt 0:00:00]} 39. Bd1 {[%emt 0:00:04]} Qe3+ {[%emt 0:00:00]} 40. Kb1 {[%emt 0:00:04]} e5 {[%emt 0:00:00]} 41. Qg6+ {[%emt 0:15:40]} Kh8 {[%emt 0:00:00]} 42. Qxf5 {[%emt 0:00:33]} Qe1 {[%emt 0:00:00]} 43. Qf3 {[%emt 0:00:33]} 1-0

[Event "DSAM Bad Wildungen 2024"]
[Site "Bad Wildungen"]
[Date "2024.08.01"]
[Round "2.3"]
[White "Vogel, Constantin"]
[Black "Kracht, Raphael"]
[Result "0-1"]
[Annotator "RC"]
[ECO "A14"]
[WhiteElo "2184"]
[BlackElo "2199"]
[PlyCount "96"]
[EventDate "2024.07.31"]
[EventCountry "GER"]
[SourceTitle "playchess.com"]
[Source "ChessBase"]
[SourceQuality "1"]
[TimeControl "40/5400+30:900+30"]

1. c4 {[%emt 0:00:03]} Nf6 {[%emt 0:01:41]} 2. g3 {[%emt 0:00:07]} e6 {[%emt 0:00:03]} 3. Bg2 {[%emt 0:00:05]} d5 {[%emt 0:00:06]} 4. Nf3 {[%emt 0:00:09]} Be7 {[%emt 0:00:03]} 5. O-O {[%emt 0:00:13]} O-O {[%emt 0:00:04]} 6. b3 {[%emt 0:00:19]} b6 {[%emt 0:00:04]} 7. Bb2 {[%emt 0:01:20]} c5 {[%emt 0:01:35]} 8. cxd5 {[%emt 0:00:39]} Nxd5 {[%emt 0:00:05]} 9. d4 {[%emt 0:00:32]} Bb7 {[%emt 0:01:56]} 10. Nbd2 {[%emt 0:03:25]} Nd7 {[%emt 0:01:47]} 11. e4 {[%emt 0:10:45]} N5f6 {[%emt 0:00:06]} 12. Qe2 {[%emt 0:04:51]} a5 {[%emt 0:02:51]} 13. Rfd1 {[%emt 0:02:51]} Qc7 {[%emt 0:06:25]} 14. Rac1 {[%emt 0:04:26]} Rad8 {[%emt 0:01:08]} 15. e5 {[%emt 0:13:17]} Nd5 {[%emt 0:01:35]} 16. Ne4 {[%emt 0:03:10]} Qb8 {[%emt 0:00:43]} 17. h4 {[%emt 0:09:16]} h6 {[%emt 0:01:44]} 18. Nfd2 {[%emt 0:04:41]} cxd4 {[%emt 0:06:52]} 19. Bxd4 {[%emt 0:01:45]} Nxe5 {[%emt 0:04:02]} 20. f4 {[%emt 0:05:52]} Nxf4 {[%emt 0:16:13]} 21. gxf4 {[%emt 0:02:05]} Rxd4 {[%emt 0:00:14]} 22. fxe5 {[%emt 0:03:28]} Qxe5 {[%emt 0:06:13]} 23. Qf2 {[%emt 0:09:30]} Bxe4 {[%emt 0:10:21]} 24. Re1 {[%emt 0:04:02]} Rxd2 {[%emt 0:05:12]} 25. Qxd2 {[%emt 0:01:14]} Bc5+ {[%emt 0:00:15]} 26. Kh1 {[%emt 0:00:23]} f5 {[%emt 0:09:00]} 27. Re2 {[%emt 0:03:40]} Qg3 {[%emt 0:02:11]} 28. Bxe4 {[%emt 0:01:48]} Qxh4+ {[%emt 0:00:29]} 29. Rh2 {[%emt 0:01:07]} Qxe4+ {[%emt 0:00:07]} 30. Rg2 {[%emt 0:00:37]} Qh4+ {[%emt 0:10:11]} 31. Rh2 {[%emt 0:00:07]} Qg5 {[%emt 0:00:25]} 32. Qe1 {[%emt 0:01:44]} Qe3 {[%emt 0:03:31]} 33. Re2 {[%emt 0:01:08]} Qh3+ {[%emt 0:05:48]} 34. Rh2 {[%emt 0:00:05]} Qf3+ {[%emt 0:00:24]} 35. Rg2 {[%emt 0:00:06]} Rf6 {[%emt 0:00:29]} 36. Rc3 {[%emt 0:02:59]} Bb4 {[%emt 0:01:00]} 37. Rc8+ {[%emt 0:00:48]} Kh7 {[%emt 0:00:23]} 38. Qg3 {[%emt 0:06:53]} Qxg3 {[%emt 0:02:20]} 39. Rxg3 {[%emt 0:00:00]} f4 {[%emt 0:00:22]} 40. Rd3 {[%emt 0:00:00]} f3 {[%emt 0:01:29]} 41. Kg1 {[%emt 0:14:09]} Bc5+ {[%emt 0:15:12]} 42. Kf1 {[%emt 0:00:16]} e5 {[%emt 0:00:44]} 43. Re8 {[%emt 0:01:40]} Bd4 {[%emt 0:00:08]} 44. Re7 {[%emt 0:00:00]} h5 {[%emt 0:00:00]} 45. a3 {[%emt 0:00:00]} h4 {[%emt 0:00:00]} 46. b4 {[%emt 0:00:00]} axb4 {[%emt 0:00:00]} 47. axb4 {[%emt 0:00:00]} h3 {[%emt 0:00:00]} 48. Rd2 {[%emt 0:00:00]} Rg6 {[%emt 0:00:00]} 0-1

[Event "DSAM Bad Wildungen 2024"]
[Site "Bad Wildungen"]
[Date "2024.08.01"]
[Round "2.4"]
[White "Kocak, Ediz"]
[Black "Huesmann, Thomas"]
[Result "1-0"]
[Annotator "RC"]
[ECO "A80"]
[WhiteElo "2166"]
[BlackElo "2165"]
[PlyCount "113"]
[EventDate "2024.07.31"]
[EventCountry "GER"]
[SourceTitle "playchess.com"]
[Source "ChessBase"]
[SourceQuality "1"]
[TimeControl "40/5400+30:900+30"]

1. d4 {[%emt 0:18:05]} f5 {[%emt 0:00:27]} 2. Bg5 {[%emt 0:00:06]} g6 {[%emt 0:00:15]} 3. Nc3 {[%emt 0:00:05]} d5 {[%emt 0:00:43]} 4. h4 {[%emt 0:02:23]} h6 {[%emt 0:00:34]} 5. Bf4 {[%emt 0:00:16]} Bg7 {[%emt 0:02:37]} 6. Nf3 {[%emt 0:13:53]} e6 {[%emt 0:02:37]} 7. Ne5 {[%emt 0:07:35]} Bxe5 {[%emt 0:02:32]} 8. Bxe5 {[%emt 0:00:07]} Rh7 {[%emt 0:00:27]} 9. Qd3 {[%emt 0:15:16]} Nc6 {[%emt 0:10:32]} 10. Bf4 {[%emt 0:00:29]} Rg7 {[%emt 0:14:59]} 11. e3 {[%emt 0:01:14]} a6 {[%emt 0:03:14]} 12. O-O-O {[%emt 0:00:29]} Bd7 {[%emt 0:06:25]} 13. Kb1 {[%emt 0:00:55]} b5 {[%emt 0:05:20]} 14. Qd2 {[%emt 0:07:05]} Nce7 {[%emt 0:04:12]} 15. Ne2 {[%emt 0:01:57]} Nc8 {[%emt 0:06:13]} 16. Qc3 {[%emt 0:01:25]} c6 {[%emt 0:02:14]} 17. Nc1 {[%emt 0:00:55]} Nb6 {[%emt 0:03:25]} 18. Nd3 {[%emt 0:09:20]} Na4 {[%emt 0:03:54]} 19. Qd2 {[%emt 0:00:21]} Nb6 {[%emt 0:02:07]} 20. Nc5 {[%emt 0:00:23]} a5 {[%emt 0:02:05]} 21. Nb7 {[%emt 0:00:45]} Qe7 {[%emt 0:02:16]} 22. Bd6 {[%emt 0:00:42]} Qf7 {[%emt 0:01:33]} 23. Be5 {[%emt 0:00:17]} Kf8 {[%emt 0:02:17]} 24. Qc3 {[%emt 0:09:05]} Na4 {[%emt 0:08:45]} 25. Qa3+ {[%emt 0:00:07]} c5 {[%emt 0:00:25]} 26. Nxc5 {[%emt 0:05:30]} b4 {[%emt 0:01:47]} 27. Bxg7+ {[%emt 0:01:30]} Kxg7 {[%emt 0:00:30]} 28. Qd3 {[%emt 0:01:24]} Nxc5 {[%emt 0:00:20]} 29. dxc5 {[%emt 0:00:02]} Ne7 {[%emt 0:02:32]} 30. f4 {[%emt 0:02:50]} h5 {[%emt 0:02:12]} 31. Be2 {[%emt 0:00:42]} Nc6 {[%emt 0:03:25]} 32. c3 {[%emt 0:00:29]} Qf8 {[%emt 0:01:39]} 33. cxb4 {[%emt 0:00:43]} axb4 {[%emt 0:00:18]} 34. Rc1 {[%emt 0:00:20]} Ra5 {[%emt 0:00:42]} 35. b3 {[%emt 0:00:37]} Kf7 {[%emt 0:01:31]} 36. g3 {[%emt 0:00:22]} Bc8 {[%emt 0:01:33]} 37. Qd2 {[%emt 0:00:37]} Ba6 {[%emt 0:00:29]} 38. Bxa6 {[%emt 0:00:34]} Rxa6 {[%emt 0:00:06]} 39. Rh2 {[%emt 0:00:16]} Ra5 {[%emt 0:00:19]} 40. Rf2 {[%emt 0:00:38]} Qc8 {[%emt 0:01:22]} 41. Qd3 {[%emt 0:08:40]} Qb7 {[%emt 0:03:26]} 42. g4 {[%emt 0:03:11]} fxg4 {[%emt 0:03:11]} 43. e4 {[%emt 0:00:02]} Qa6 {[%emt 0:02:46]} 44. Qxa6 {[%emt 0:01:29]} Rxa6 {[%emt 0:00:06]} 45. exd5 {[%emt 0:00:04]} exd5 {[%emt 0:00:35]} 46. f5 {[%emt 0:00:02]} Nd4 {[%emt 0:01:37]} 47. fxg6+ {[%emt 0:00:07]} Kxg6 {[%emt 0:00:21]} 48. Rd2 {[%emt 0:03:15]} Nb5 {[%emt 0:03:17]} 49. Rxd5 {[%emt 0:00:08]} Rf6 {[%emt 0:03:07]} 50. c6 {[%emt 0:01:29]} Nc3+ {[%emt 0:01:24]} 51. Rxc3 {[%emt 0:00:03]} bxc3 {[%emt 0:00:09]} 52. c7 {[%emt 0:01:03]} Rc6 {[%emt 0:01:03]} 53. Rd6+ {[%emt 0:00:06]} Rxd6 {[%emt 0:00:04]} 54. c8=Q {[%emt 0:00:06]} Rd1+ {[%emt 0:01:31]} 55. Kc2 {[%emt 0:00:04]} Rd2+ {[%emt 0:00:26]} 56. Kxc3 {[%emt 0:00:15]} Rxa2 {[%emt 0:00:06]} 57. Qe6+ {[%emt 0:00:29]} 1-0

[Event "DSAM Bad Wildungen 2024"]
[Site "Bad Wildungen"]
[Date "2024.08.01"]
[Round "2.5"]
[White "Gluma, Christian"]
[Black "Sydykov, Bayastan"]
[Result "0-1"]
[Annotator "RC"]
[ECO "C03"]
[WhiteElo "2091"]
[BlackElo "2246"]
[PlyCount "82"]
[EventDate "2024.07.31"]
[EventCountry "GER"]
[SourceTitle "playchess.com"]
[Source "ChessBase"]
[SourceQuality "1"]
[TimeControl "40/5400+30:900+30"]

1. e4 {[%emt 0:00:23]} e6 {[%emt 0:00:10]} 2. d4 {[%emt 0:00:30]} d5 {[%emt 0:00:30]} 3. Nd2 {[%emt 0:00:00]} h6 {[%emt 0:00:04]} 4. c3 {[%emt 0:00:49]} c5 {[%emt 0:00:12]} 5. exd5 {[%emt 0:03:11]} exd5 {[%emt 0:05:23]} 6. Ngf3 {[%emt 0:05:45]} Nf6 {[%emt 0:05:59]} 7. Bd3 {[%emt 0:05:51]} Bd6 {[%emt 0:02:57]} 8. dxc5 {[%emt 0:02:05]} Bxc5 {[%emt 0:00:19]} 9. O-O {[%emt 0:03:03]} O-O {[%emt 0:00:32]} 10. Nb3 {[%emt 0:02:44]} Bb6 {[%emt 0:01:52]} 11. h3 {[%emt 0:05:20]} Bc7 {[%emt 0:10:12]} 12. Be3 {[%emt 0:03:35]} Nc6 {[%emt 0:03:07]} 13. Bc2 {[%emt 0:04:29]} Re8 {[%emt 0:06:42]} 14. Qd3 {[%emt 0:07:34]} Qd6 {[%emt 0:11:18]} 15. Bc5 {[%emt 0:02:46]} Qd8 {[%emt 0:15:41]} 16. Rfe1 {[%emt 0:05:45]} Be6 {[%emt 0:04:06]} 17. Rad1 {[%emt 0:13:20]} b6 {[%emt 0:12:36]} 18. Be3 {[%emt 0:09:23]} Qd6 {[%emt 0:05:58]} 19. Nbd4 {[%emt 0:02:50]} Nxd4 20. Nxd4 Qe5 {[%emt 0:01:26]} 21. Nf3 {[%emt 0:01:32]} Qh5 {[%emt 0:01:00]} 22. Bd4 {[%emt 0:05:31]} Ne4 {[%emt 0:00:44]} 23. Nd2 {[%emt 0:05:51]} Bf5 {[%emt 0:04:37]} 24. Qf3 {[%emt 0:02:38]} Qg6 {[%emt 0:01:29]} 25. Nf1 {[%emt 0:02:16]} Qe6 {[%emt 0:03:29]} 26. Re3 {[%emt 0:02:41]} Bg6 {[%emt 0:00:23]} 27. Rde1 {[%emt 0:00:56]} f5 {[%emt 0:01:17]} 28. Bb3 {[%emt 0:01:06]} Bf7 {[%emt 0:01:10]} 29. Qd1 {[%emt 0:01:11]} Qg6 {[%emt 0:01:06]} 30. Ba4 {[%emt 0:00:40]} Re6 {[%emt 0:00:21]} 31. f3 {[%emt 0:01:06]} f4 {[%emt 0:00:28]} 32. R3e2 {[%emt 0:00:34]} Ng5 {[%emt 0:00:19]} 33. Kh2 {[%emt 0:00:44]} Rxe2 {[%emt 0:00:43]} 34. Qxe2 {[%emt 0:00:27]} Be6 {[%emt 0:00:43]} 35. Bc2 {[%emt 0:00:43]} Qh5 {[%emt 0:00:24]} 36. Kg1 {[%emt 0:00:33]} Re8 {[%emt 0:00:35]} 37. Nh2 {[%emt 0:00:27]} Qh4 {[%emt 0:00:34]} 38. Bg6 {[%emt 0:00:28]} Re7 {[%emt 0:00:26]} 39. Bf2 {[%emt 0:00:13]} Nxh3+ {[%emt 0:00:08]} 40. gxh3 {[%emt 0:00:21]} Qg5+ {[%emt 0:00:08]} 41. Kh1 {[%emt 0:15:32]} Bxh3 {[%emt 0:15:24]} 0-1

[Event "DSAM Bad Wildungen 2024"]
[Site "Bad Wildungen"]
[Date "2024.08.01"]
[Round "2.6"]
[White "Marcziter, Dmitrii"]
[Black "Gassmann, Volker"]
[Result "1/2-1/2"]
[Annotator "RC"]
[ECO "D36"]
[WhiteElo "2204"]
[BlackElo "2077"]
[PlyCount "107"]
[EventDate "2024.07.31"]
[EventCountry "GER"]
[SourceTitle "playchess.com"]
[Source "ChessBase"]
[SourceQuality "1"]
[TimeControl "40/5400+30:900+30"]

1. d4 {[%emt 0:00:44]} d5 {[%emt 0:00:13]} 2. c4 {[%emt 0:00:29]} e6 {[%emt 0:00:22]} 3. Nf3 {[%emt 0:00:16]} Nf6 {[%emt 0:00:23]} 4. Bg5 {[%emt 0:00:25]} Be7 {[%emt 0:00:24]} 5. Nc3 {[%emt 0:02:31]} O-O {[%emt 0:00:45]} 6. e3 {[%emt 0:00:23]} Nbd7 {[%emt 0:01:23]} 7. cxd5 {[%emt 0:01:26]} exd5 {[%emt 0:00:21]} 8. Qc2 {[%emt 0:00:15]} c6 {[%emt 0:00:17]} 9. Bd3 {[%emt 0:00:19]} Re8 {[%emt 0:00:43]} 10. O-O {[%emt 0:00:26]} Nf8 {[%emt 0:01:11]} 11. Rae1 {[%emt 0:00:23]} Ne4 {[%emt 0:04:16]} 12. Bxe7 {[%emt 0:00:41]} Qxe7 {[%emt 0:00:09]} 13. Bxe4 {[%emt 0:00:09]} dxe4 {[%emt 0:00:05]} 14. Nd2 {[%emt 0:00:11]} f5 {[%emt 0:00:34]} 15. f3 {[%emt 0:00:21]} exf3 {[%emt 0:00:40]} 16. Nxf3 {[%emt 0:00:18]} Ng6 {[%emt 0:04:40]} 17. e4 {[%emt 0:02:00]} f4 {[%emt 0:00:28]} 18. e5 {[%emt 0:03:51]} Bg4 {[%emt 0:01:20]} 19. Ne4 {[%emt 0:01:45]} Bxf3 {[%emt 0:01:03]} 20. Rxf3 {[%emt 0:08:05]} Rad8 {[%emt 0:00:40]} 21. Qc3 {[%emt 0:07:06]} b6 {[%emt 0:07:45]} 22. b4 {[%emt 0:04:12]} Qe6 {[%emt 0:04:13]} 23. a3 {[%emt 0:04:07]} Rf8 {[%emt 0:21:42]} 24. Rh3 {[%emt 0:21:19]} Qd5 {[%emt 0:09:23]} 25. Ng5 {[%emt 0:02:47]} Rfe8 {[%emt 0:03:26]} 26. Nf3 {[%emt 0:01:10]} c5 {[%emt 0:04:40]} 27. dxc5 {[%emt 0:07:49]} bxc5 {[%emt 0:00:14]} 28. b5 {[%emt 0:00:13]} c4 {[%emt 0:01:01]} 29. a4 {[%emt 0:07:04]} Qc5+ {[%emt 0:00:57]} 30. Kf1 {[%emt 0:00:19]} Rd3 {[%emt 0:00:20]} 31. Qc2 {[%emt 0:00:16]} Qd5 {[%emt 0:04:47]} 32. Qf2 {[%emt 0:08:33]} Rd1 {[%emt 0:08:23]} 33. Qc2 {[%emt 0:05:14]} Rxe1+ {[%emt 0:08:15]} 34. Kxe1 {[%emt 0:00:14]} Re6 {[%emt 0:00:21]} 35. Rh5 {[%emt 0:00:49]} h6 {[%emt 0:01:15]} 36. Kf1 {[%emt 0:00:30]} a6 {[%emt 0:04:03]} 37. bxa6 {[%emt 0:05:28]} Rxa6 {[%emt 0:00:15]} 38. h4 {[%emt 0:01:25]} Qd3+ {[%emt 0:03:05]} 39. Qxd3 {[%emt 0:00:06]} cxd3 {[%emt 0:00:08]} 40. e6 {[%emt 0:01:37]} Rd6 {[%emt 0:03:02]} 41. Nd2 {[%emt 0:09:11]} Kf8 {[%emt 0:09:35]} 42. Rf5+ {[%emt 0:01:56]} Ke7 {[%emt 0:00:11]} 43. Rf7+ {[%emt 0:00:48]} Kxe6 {[%emt 0:00:12]} 44. Rxg7 {[%emt 0:00:02]} Kf5 {[%emt 0:04:09]} 45. h5 {[%emt 0:01:34]} Ne5 {[%emt 0:00:12]} 46. Rb7 {[%emt 0:00:23]} Ng4 {[%emt 0:03:20]} 47. Rb5+ {[%emt 0:00:17]} Ke6 {[%emt 0:00:08]} 48. a5 {[%emt 0:01:55]} Rc6 {[%emt 0:00:53]} 49. Rb6 {[%emt 0:00:38]} Kd7 {[%emt 0:01:29]} 50. Rxc6 {[%emt 0:00:09]} Kxc6 {[%emt 0:00:01]} 51. g3 {[%emt 0:00:14]} fxg3 {[%emt 0:00:20]} 52. Kg2 {[%emt 0:00:02]} Nf6 {[%emt 0:00:13]} 53. Kxg3 {[%emt 0:00:14]} Nxh5+ {[%emt 0:00:05]} 54. Kf3 {[%emt 0:00:23]} 1/2-1/2

[Event "DSAM Bad Wildungen 2024"]
[Site "Bad Wildungen"]
[Date "2024.08.01"]
[Round "2.7"]
[White "Fuhrmann, Bahne"]
[Black "Dauth, Benjamin"]
[Result "1/2-1/2"]
[Annotator "RC"]
[ECO "E01"]
[WhiteElo "2152"]
[BlackElo "2247"]
[PlyCount "65"]
[EventDate "2024.07.31"]
[EventCountry "GER"]
[SourceTitle "playchess.com"]
[Source "ChessBase"]
[SourceQuality "1"]
[TimeControl "40/5400+30:900+30"]

1. d4 {[%emt 0:00:05]} Nf6 {[%emt 0:01:45]} 2. c4 {[%emt 0:00:28]} c6 {[%emt 0:00:07]} 3. Nf3 {[%emt 0:00:07]} d5 {[%emt 0:00:17]} 4. Nc3 {[%emt 0:00:06]} e6 {[%emt 0:00:17]} 5. g3 {[%emt 0:00:06]} Bd6 {[%emt 0:01:35]} 6. Bg2 {[%emt 0:00:09]} O-O {[%emt 0:00:06]} 7. O-O {[%emt 0:00:07]} Nbd7 {[%emt 0:00:48]} 8. Nd2 {[%emt 0:00:06]} a6 {[%emt 0:03:14]} 9. e4 {[%emt 0:01:09]} dxe4 {[%emt 0:01:12]} 10. Ndxe4 {[%emt 0:00:07]} Be7 {[%emt 0:00:14]} 11. Qc2 {[%emt 0:04:46]} Nxe4 {[%emt 0:01:03]} 12. Nxe4 {[%emt 0:09:04]} f5 {[%emt 0:05:36]} 13. Nc3 {[%emt 0:01:51]} e5 {[%emt 0:00:13]} 14. dxe5 {[%emt 0:05:17]} Nxe5 {[%emt 0:00:23]} 15. Rd1 {[%emt 0:03:07]} Qe8 {[%emt 0:00:23]} 16. Re1 {[%emt 0:01:21]} Ng6 {[%emt 0:00:31]} 17. Bg5 {[%emt 0:18:31]} Qf7 {[%emt 0:01:42]} 18. Bxe7 {[%emt 0:00:22]} Nxe7 {[%emt 0:00:05]} 19. Qe2 {[%emt 0:04:14]} Ng6 {[%emt 0:00:15]} 20. f4 {[%emt 0:02:42]} Bd7 {[%emt 0:00:11]} 21. Na4 {[%emt 0:08:19]} Rae8 {[%emt 0:00:25]} 22. Qd3 {[%emt 0:03:03]} Rxe1+ {[%emt 0:00:06]} 23. Rxe1 {[%emt 0:00:08]} Re8 {[%emt 0:00:03]} 24. Rd1 {[%emt 0:02:29]} Nf8 {[%emt 0:00:23]} 25. Nb6 {[%emt 0:04:23]} Be6 {[%emt 0:00:42]} 26. b3 {[%emt 0:00:47]} Qf6 {[%emt 0:01:49]} 27. Bf3 {[%emt 0:08:35]} Qb2 {[%emt 0:04:03]} 28. Rd2 {[%emt 0:02:29]} Qa1+ {[%emt 0:00:51]} 29. Kg2 {[%emt 0:00:48]} Qf6 {[%emt 0:01:06]} 30. c5 {[%emt 0:00:55]} h6 {[%emt 0:00:12]} 31. Qd6 {[%emt 0:04:45]} g5 {[%emt 0:02:03]} 32. Bh5 {[%emt 0:02:07]} Re7 {[%emt 0:00:41]} 33. Be2 {[%emt 0:05:43]} 1/2-1/2

[Event "DSAM Bad Wildungen 2024"]
[Site "Bad Wildungen"]
[Date "2024.08.01"]
[Round "2.8"]
[White "Menzel, Maximilian"]
[Black "Trunz, Michelle"]
[Result "1-0"]
[Annotator "RC"]
[ECO "A46"]
[WhiteElo "2108"]
[BlackElo "2044"]
[PlyCount "131"]
[EventDate "2024.07.31"]
[EventCountry "GER"]
[SourceTitle "playchess.com"]
[Source "ChessBase"]
[SourceQuality "1"]
[TimeControl "40/5400+30:900+30"]

1. d4 {[%emt 0:00:04]} d5 {[%emt 0:00:05]} 2. Nf3 {[%emt 0:00:30]} Nf6 {[%emt 0:00:06]} 3. g3 {[%emt 0:00:00]} b5 {[%emt 0:00:12]} 4. Bg2 {[%emt 0:00:47]} e6 {[%emt 0:00:13]} 5. O-O {[%emt 0:00:09]} Be7 {[%emt 0:00:06]} 6. a4 {[%emt 0:00:32]} b4 {[%emt 0:00:05]} 7. c4 {[%emt 0:00:08]} bxc3 {[%emt 0:00:07]} 8. Nxc3 {[%emt 0:00:14]} O-O {[%emt 0:00:44]} 9. Bf4 {[%emt 0:11:47]} Ba6 {[%emt 0:03:38]} 10. Qc2 {[%emt 0:06:38]} Bd6 {[%emt 0:11:15]} 11. Rfc1 {[%emt 0:07:38]} Bxf4 {[%emt 0:12:40]} 12. gxf4 {[%emt 0:02:57]} Qd6 {[%emt 0:00:18]} 13. Ne5 {[%emt 0:03:22]} Nfd7 {[%emt 0:02:33]} 14. Nb5 {[%emt 0:29:19]} Bxb5 {[%emt 0:02:15]} 15. axb5 {[%emt 0:00:30]} Rc8 {[%emt 0:00:30]} 16. e4 {[%emt 0:05:10]} Nb6 {[%emt 0:14:59]} 17. Qc5 {[%emt 0:05:55]} N8d7 {[%emt 0:49:14]} 18. Qxd6 {[%emt 0:02:36]} cxd6 {[%emt 0:00:30]} 19. Nxd7 {[%emt 0:00:45]} Nxd7 {[%emt 0:00:00]} 20. exd5 {[%emt 0:00:57]} Rxc1+ {[%emt 0:00:00]} 21. Rxc1 {[%emt 0:00:02]} exd5 {[%emt 0:00:00]} 22. Bxd5 {[%emt 0:00:30]} Rb8 {[%emt 0:00:00]} 23. Rc7 {[%emt 0:00:30]} Nf6 {[%emt 0:00:00]} 24. Bxf7+ {[%emt 0:06:47]} Kf8 {[%emt 0:00:00]} 25. Bc4 {[%emt 0:00:30]} d5 {[%emt 0:00:00]} 26. Be2 {[%emt 0:01:51]} Re8 {[%emt 0:00:00]} 27. Bf3 {[%emt 0:04:21]} Re1+ {[%emt 0:00:00]} 28. Kg2 {[%emt 0:00:07]} Ra1 {[%emt 0:00:00]} 29. b3 {[%emt 0:07:47]} Ra3 {[%emt 0:00:00]} 30. Rc5 {[%emt 0:01:08]} Rxb3 {[%emt 0:00:00]} 31. Bxd5 {[%emt 0:00:12]} Rb4 {[%emt 0:00:00]} 32. Bc4 {[%emt 0:01:22]} Nd5 {[%emt 0:00:00]} 33. Rc7 {[%emt 0:01:04]} Nb6 {[%emt 0:00:00]} 34. Be2 Nd5 {[%emt 0:00:00]} 35. Rxa7 {[%emt 0:01:00]} Rxd4 {[%emt 0:00:00]} 36. Bf3 {[%emt 0:00:31]} Nb6 {[%emt 0:00:00]} 37. Rb7 {[%emt 0:00:15]} Rd6 {[%emt 0:00:00]} 38. Bc6 {[%emt 0:00:25]} Nc4 {[%emt 0:00:00]} 39. Kf3 {[%emt 0:00:42]} Nd2+ {[%emt 0:00:00]} 40. Ke2 {[%emt 0:00:48]} Nb3 {[%emt 0:00:35]} 41. Be4 {[%emt 0:10:20]} Nc5 {[%emt 0:12:20]} 42. Rb8+ {[%emt 0:00:20]} Ke7 {[%emt 0:00:57]} 43. Bf3 {[%emt 0:01:57]} Kd7 {[%emt 0:00:30]} 44. Rg8 {[%emt 0:02:03]} Rg6 {[%emt 0:03:54]} 45. f5 {[%emt 0:00:50]} Rg1 {[%emt 0:03:13]} 46. b6 {[%emt 0:00:56]} Ke7 {[%emt 0:04:01]} 47. b7 {[%emt 0:00:30]} Nxb7 {[%emt 0:00:30]} 48. Bxb7 {[%emt 0:00:09]} Rg5 {[%emt 0:00:24]} 49. Bd5 {[%emt 0:00:15]} Kf6 {[%emt 0:00:07]} 50. Rf8+ {[%emt 0:02:34]} Ke5 {[%emt 0:00:06]} 51. Bf3 {[%emt 0:00:14]} Rg1 {[%emt 0:00:58]} 52. Rf7 {[%emt 0:00:40]} g5 {[%emt 0:02:24]} 53. fxg6 {[%emt 0:00:34]} hxg6 {[%emt 0:00:06]} 54. h3 {[%emt 0:00:24]} Ke6 {[%emt 0:00:27]} 55. Rf8 {[%emt 0:00:08]} Ra1 {[%emt 0:00:42]} 56. Bg4+ {[%emt 0:00:12]} Ke7 {[%emt 0:00:02]} 57. Rb8 {[%emt 0:00:13]} Kf6 {[%emt 0:00:15]} 58. Rb5 {[%emt 0:00:29]} Ra3 {[%emt 0:00:20]} 59. Kf1 {[%emt 0:00:14]} Rc3 {[%emt 0:00:14]} 60. Kg2 {[%emt 0:00:08]} Ra3 {[%emt 0:00:08]} 61. h4 {[%emt 0:00:23]} Rc3 {[%emt 0:00:24]} 62. f3 {[%emt 0:00:08]} Rc2+ {[%emt 0:00:17]} 63. Kg3 {[%emt 0:00:05]} Rc1 {[%emt 0:00:04]} 64. Rb6+ {[%emt 0:00:28]} Kg7 {[%emt 0:00:17]} 65. Be6 {[%emt 0:01:10]} Kf6 {[%emt 0:01:38]} 66. Bd5+ {[%emt 0:00:27]} 1-0